[Event "Titled Tuesday Blitz March 14 Late 2023"]
[White "Chor, Kevin"]
[Black "Garrido Dominguez, Jesus"]
[WhiteFideId "2090740"]
[BlackFideId "2254174"]
[WhiteElo "2614"]
[BlackElo "2385"]
[Result "0-1"]
[Round "08"]
[TimeControl "180+2"]
[Date "2023.03.14"]
[WhiteClock "0:00:18"]
[BlackClock "0:00:46"]

1. Nf3 {[%clk 0:03:00]}  d6 {[%clk 0:02:51]} 2. e4 {[%clk 0:02:55]}  Nf6 {[%clk 0:02:52]} 3. Nc3 {[%clk 0:02:53]}  e5 {[%clk 0:02:53]} 4. d4 {[%clk 0:02:53]}  Nbd7 {[%clk 0:02:53]} 5. Bc4 {[%clk 0:02:52]}  Be7 {[%clk 0:02:54]} 6. O-O {[%clk 0:02:50]}  O-O {[%clk 0:02:54]} 7. Qe2 {[%clk 0:02:50]}  c6 {[%clk 0:02:52]} 8. Rd1 {[%clk 0:02:50]}  exd4 {[%clk 0:02:39]} 9. Nxd4 {[%clk 0:02:44]}  Nc5 {[%clk 0:02:39]} 10. e5 {[%clk 0:02:31]}  Ng4 {[%clk 0:02:37]} 11. e6 {[%clk 0:02:14]}  Ne5 {[%clk 0:02:35]} 12. exf7+ {[%clk 0:02:10]}  Kh8 {[%clk 0:02:35]} 13. Bf4 {[%clk 0:02:02]}  Nxc4 {[%clk 0:02:31]} 14. Qxc4 {[%clk 0:02:03]}  d5 {[%clk 0:02:31]} 15. Qe2 {[%clk 0:01:59]}  Rxf7 {[%clk 0:02:31]} 16. Bg3 {[%clk 0:02:00]}  Bf6 {[%clk 0:02:11]} 17. Nb3 {[%clk 0:01:57]}  Nxb3 {[%clk 0:02:09]} 18. axb3 {[%clk 0:01:58]}  Qf8 {[%clk 0:02:00]} 19. Na4 {[%clk 0:01:50]}  Bf5 {[%clk 0:01:57]} 20. Re1 {[%clk 0:01:42]}  Re7 {[%clk 0:01:53]} 21. Qd2 {[%clk 0:01:38]}  Rxe1+ {[%clk 0:01:53]} 22. Rxe1 {[%clk 0:01:39]}  Re8 {[%clk 0:01:52]} 23. Bd6 {[%clk 0:01:33]}  Qf7 {[%clk 0:01:46]} 24. c3 {[%clk 0:01:21]}  h6 {[%clk 0:01:46]} 25. h3 {[%clk 0:01:18]}  Rxe1+ {[%clk 0:01:41]} 26. Qxe1 {[%clk 0:01:19]}  Bc2 {[%clk 0:01:41]} 27. Nc5 {[%clk 0:01:17]}  b6 {[%clk 0:01:39]} 28. Qd2 {[%clk 0:01:17]}  Qg6 {[%clk 0:01:33]} 29. Nd7 {[%clk 0:01:12]}  Bxb3 {[%clk 0:01:26]} 30. Nxf6 {[%clk 0:01:10]}  Qxf6 {[%clk 0:01:27]} 31. Bg3 {[%clk 0:01:09]}  c5 {[%clk 0:01:24]} 32. Qe3 {[%clk 0:01:06]}  d4 {[%clk 0:01:24]} 33. Qe8+ {[%clk 0:01:05]}  Bg8 {[%clk 0:01:23]} 34. Be5 {[%clk 0:01:05]}  Qe6 {[%clk 0:01:13]} 35. Qxe6 {[%clk 0:01:00]}  Bxe6 {[%clk 0:01:13]} 36. cxd4 {[%clk 0:01:01]}  c4 {[%clk 0:01:11]} 37. Kf1 {[%clk 0:00:59]}  Bd5 {[%clk 0:01:11]} 38. g3 {[%clk 0:00:58]}  b5 {[%clk 0:01:12]} 39. Ke2 {[%clk 0:00:57]}  b4 {[%clk 0:01:12]} 40. Bd6 {[%clk 0:00:55]}  a5 {[%clk 0:01:12]} 41. Kd2 {[%clk 0:00:54]}  Kg8 {[%clk 0:01:12]} 42. Bc7 {[%clk 0:00:53]}  a4 {[%clk 0:01:11]} 43. Bd6 {[%clk 0:00:51]}  c3+ {[%clk 0:00:59]} 44. bxc3 {[%clk 0:00:49]}  a3 {[%clk 0:00:58]} 45. Kc1 {[%clk 0:00:43]}  a2 {[%clk 0:00:56]} 46. Kb2 {[%clk 0:00:38]}  bxc3+ {[%clk 0:00:56]} 47. Ka1 {[%clk 0:00:38]}  c2 {[%clk 0:00:52]} 48. Bf4 {[%clk 0:00:38]}  Kf7 {[%clk 0:00:53]} 49. h4 {[%clk 0:00:35]}  Ke6 {[%clk 0:00:53]} 50. Be3 {[%clk 0:00:36]}  Bb3 {[%clk 0:00:52]} 51. Kb2 {[%clk 0:00:35]}  Kd5 {[%clk 0:00:51]} 52. Ka1 {[%clk 0:00:33]}  Ke4 {[%clk 0:00:51]} 53. Kb2 {[%clk 0:00:31]}  Kd3 {[%clk 0:00:51]} 54. Ka1 {[%clk 0:00:29]}  h5 {[%clk 0:00:48]} 55. Kb2 {[%clk 0:00:28]}  Ke2 {[%clk 0:00:48]} 56. Ka1 {[%clk 0:00:26]}  Kd1 {[%clk 0:00:48]} 57. Kb2 {[%clk 0:00:23]}  Bd5 {[%clk 0:00:48]} 58. Bf4 {[%clk 0:00:18]}  a1=Q+ {[%clk 0:00:46]} 59. Kxa1 {[%clk 0:00:17]}  c1=Q+ {[%clk 0:00:45]} 60. Bxc1 {[%clk 0:00:18]}  Kxc1 {[%clk 0:00:46]} 0-1


[Site "https://www.chess.com"]

[Event "Titled Tuesday Blitz March 14 Late 2023"]
[White "Di Berardino, Diego Rafael"]
[Black "Liu, Casper"]
[WhiteFideId "2105446"]
[BlackFideId "1454153"]
[WhiteElo "2432"]
[BlackElo "2221"]
[Result "1-0"]
[Round "08"]
[TimeControl "180+2"]
[Date "2023.03.14"]
[WhiteClock "0:00:13"]
[BlackClock "0:00:02"]

1. e4 {[%clk 0:03:00]}  c5 {[%clk 0:02:59]} 2. Nf3 {[%clk 0:02:55]}  e6 {[%clk 0:02:59]} 3. c3 {[%clk 0:02:52]}  d5 {[%clk 0:02:58]} 4. exd5 {[%clk 0:02:50]}  exd5 {[%clk 0:02:59]} 5. d4 {[%clk 0:02:50]}  Nf6 {[%clk 0:02:59]} 6. Bb5+ {[%clk 0:02:48]}  Nc6 {[%clk 0:02:56]} 7. O-O {[%clk 0:02:48]}  Be7 {[%clk 0:02:56]} 8. dxc5 {[%clk 0:02:47]}  O-O {[%clk 0:02:55]} 9. Re1 {[%clk 0:02:42]}  Bg4 {[%clk 0:02:55]} 10. Be3 {[%clk 0:02:37]}  Ne4 {[%clk 0:02:52]} 11. Nbd2 {[%clk 0:02:33]}  f5 {[%clk 0:02:51]} 12. Be2 {[%clk 0:02:27]}  Kh8 {[%clk 0:02:50]} 13. Nd4 {[%clk 0:02:23]}  Bxe2 {[%clk 0:02:41]} 14. Qxe2 {[%clk 0:02:23]}  Qe8 {[%clk 0:02:32]} 15. Ne6 {[%clk 0:02:11]}  Qg6 {[%clk 0:01:42]} 16. Nxf8 {[%clk 0:02:08]}  Rxf8 {[%clk 0:01:43]} 17. f3 {[%clk 0:01:53]}  Nxc5 {[%clk 0:01:37]} 18. Nb3 {[%clk 0:01:51]}  Ne6 {[%clk 0:01:35]} 19. Qd2 {[%clk 0:01:28]}  Rd8 {[%clk 0:00:52]} 20. Nd4 {[%clk 0:01:25]}  Ne5 {[%clk 0:00:50]} 21. Kh1 {[%clk 0:01:21]}  Nc4 {[%clk 0:00:37]} 22. Qc2 {[%clk 0:01:12]}  Nc5 {[%clk 0:00:30]} 23. Qxf5 {[%clk 0:01:04]}  Nd3 {[%clk 0:00:24]} 24. Qxg6 {[%clk 0:00:58]}  hxg6 {[%clk 0:00:24]} 25. Re2 {[%clk 0:00:57]}  Ncxb2 {[%clk 0:00:18]} 26. Rb1 {[%clk 0:00:55]}  Ba3 {[%clk 0:00:18]} 27. Nb5 {[%clk 0:00:52]}  Nc4 {[%clk 0:00:18]} 28. Nxa3 {[%clk 0:00:45]}  Nxa3 {[%clk 0:00:19]} 29. Rxb7 {[%clk 0:00:44]}  Re8 {[%clk 0:00:19]} 30. h3 {[%clk 0:00:20]}  Nc4 {[%clk 0:00:20]} 31. Rxa7 {[%clk 0:00:20]}  Nxe3 {[%clk 0:00:16]} 32. Kg1 {[%clk 0:00:20]}  Re6 {[%clk 0:00:13]} 33. a4 {[%clk 0:00:20]}  Nf4 {[%clk 0:00:12]} 34. Re1 {[%clk 0:00:16]}  Nfxg2 {[%clk 0:00:12]} 35. Re2 {[%clk 0:00:15]}  Nf4 {[%clk 0:00:13]} 36. Rd2 {[%clk 0:00:14]}  Nxh3+ {[%clk 0:00:13]} 37. Kh2 {[%clk 0:00:15]}  Nf4 {[%clk 0:00:12]} 38. Kg3 {[%clk 0:00:14]}  Nf1+ {[%clk 0:00:11]} 39. Kxf4 {[%clk 0:00:14]}  Nxd2 {[%clk 0:00:11]} 40. a5 {[%clk 0:00:14]}  Nc4 {[%clk 0:00:10]} 41. a6 {[%clk 0:00:14]}  Kh7 {[%clk 0:00:10]} 42. Ra8 {[%clk 0:00:14]}  Nb6 {[%clk 0:00:08]} 43. Rb8 {[%clk 0:00:14]}  Nd7 {[%clk 0:00:09]} 44. a7 {[%clk 0:00:14]}  Rf6+ {[%clk 0:00:05]} 45. Kg3 {[%clk 0:00:14]}  Nb6 {[%clk 0:00:02]} 46. Rxb6 {[%clk 0:00:13]}  Rf8 {[%clk 0:00:02]} 47. Rb8 {[%clk 0:00:13]} 1-0


[Site "https://www.chess.com"]

[Event "Titled Tuesday Blitz March 14 Late 2023"]
[White "Szente Varga, Fruzsina"]
[Black "Koellner, Ruben Gideon"]
[WhiteFideId "712264"]
[BlackFideId "12993093"]
[WhiteElo "1994"]
[BlackElo "2303"]
[Result "1-0"]
[Round "08"]
[TimeControl "180+2"]
[Date "2023.03.14"]
[WhiteClock "0:00:30"]
[BlackClock "0:00:06"]

1. e4 {[%clk 0:03:00]}  d6 {[%clk 0:02:56]} 2. d4 {[%clk 0:02:59]}  Nf6 {[%clk 0:02:51]} 3. Nc3 {[%clk 0:02:59]}  e5 {[%clk 0:02:46]} 4. Nf3 {[%clk 0:02:51]}  Nbd7 {[%clk 0:02:46]} 5. Bc4 {[%clk 0:02:43]}  Be7 {[%clk 0:02:45]} 6. d5 {[%clk 0:02:33]}  O-O {[%clk 0:02:42]} 7. Be3 {[%clk 0:02:31]}  Ng4 {[%clk 0:02:41]} 8. Qd2 {[%clk 0:02:31]}  Nxe3 {[%clk 0:02:41]} 9. Qxe3 {[%clk 0:02:31]}  f5 {[%clk 0:02:40]} 10. O-O-O {[%clk 0:02:27]}  Nc5 {[%clk 0:02:36]} 11. Kb1 {[%clk 0:02:13]}  fxe4 {[%clk 0:02:35]} 12. Nxe4 {[%clk 0:02:14]}  Nxe4 {[%clk 0:02:36]} 13. Qxe4 {[%clk 0:02:15]}  Rf4 {[%clk 0:02:36]} 14. Qe2 {[%clk 0:02:14]}  Bg4 {[%clk 0:02:35]} 15. Bd3 {[%clk 0:02:05]}  Bf6 {[%clk 0:02:22]} 16. Be4 {[%clk 0:01:59]}  Qd7 {[%clk 0:01:45]} 17. h3 {[%clk 0:01:54]}  Bf5 {[%clk 0:01:39]} 18. Nd2 {[%clk 0:01:50]}  Bxe4 {[%clk 0:01:16]} 19. Nxe4 {[%clk 0:01:51]}  Qf5 {[%clk 0:01:14]} 20. f3 {[%clk 0:01:50]}  Rf8 {[%clk 0:01:13]} 21. Rd3 {[%clk 0:01:40]}  a5 {[%clk 0:01:12]} 22. g3 {[%clk 0:01:37]}  Rxe4 {[%clk 0:01:08]} 23. fxe4 {[%clk 0:01:32]}  Qd7 {[%clk 0:01:02]} 24. Rf3 {[%clk 0:01:32]}  c5 {[%clk 0:00:54]} 25. g4 {[%clk 0:01:21]}  h6 {[%clk 0:00:53]} 26. Rf5 {[%clk 0:01:15]}  Qe7 {[%clk 0:00:48]} 27. Qf2 {[%clk 0:01:07]}  g6 {[%clk 0:00:24]} 28. Rf3 {[%clk 0:01:06]}  Kg7 {[%clk 0:00:24]} 29. Rf1 {[%clk 0:00:59]}  Bh4 {[%clk 0:00:22]} 30. Qe2 {[%clk 0:00:42]}  Rxf3 {[%clk 0:00:22]} 31. Qxf3 {[%clk 0:00:42]}  b5 {[%clk 0:00:21]} 32. Qe2 {[%clk 0:00:35]}  Qd7 {[%clk 0:00:19]} 33. a4 {[%clk 0:00:34]}  bxa4 {[%clk 0:00:16]} 34. Qa6 {[%clk 0:00:34]}  a3 {[%clk 0:00:12]} 35. bxa3 {[%clk 0:00:32]}  Qc7 {[%clk 0:00:11]} 36. Ka2 {[%clk 0:00:31]}  Bg5 {[%clk 0:00:08]} 37. Rb1 {[%clk 0:00:31]}  Qd8 {[%clk 0:00:06]} 38. Rb7+ {[%clk 0:00:31]}  Be7 {[%clk 0:00:05]} 39. Qa7 {[%clk 0:00:31]}  Kf7 {[%clk 0:00:06]} 40. Rb8 {[%clk 0:00:30]}  Qd7 {[%clk 0:00:06]} 41. Qxd7 {[%clk 0:00:30]} 1-0


[Site "https://www.chess.com"]

[Event "Titled Tuesday Blitz March 14 Late 2023"]
[White "Fiorito, Joaquin"]
[Black "Wang, Alexander J"]
[WhiteFideId "180173"]
[BlackFideId "30955270"]
[WhiteElo "2157"]
[BlackElo "2256"]
[Result "1-0"]
[Round "08"]
[TimeControl "180+2"]
[Date "2023.03.14"]
[WhiteClock "0:02:10"]
[BlackClock "0:01:53"]

1. d4 {[%clk 0:03:00]}  d5 {[%clk 0:02:59]} 2. Nc3 {[%clk 0:03:00]}  c5 {[%clk 0:02:56]} 3. e4 {[%clk 0:02:59]}  dxe4 {[%clk 0:02:52]} 4. Bf4 {[%clk 0:02:56]}  Nf6 {[%clk 0:02:41]} 5. dxc5 {[%clk 0:02:55]}  Qxd1+ {[%clk 0:02:40]} 6. Rxd1 {[%clk 0:02:54]}  e6 {[%clk 0:02:36]} 7. Nb5 {[%clk 0:02:54]}  Na6 {[%clk 0:02:35]} 8. b4 {[%clk 0:02:50]}  Bd7 {[%clk 0:02:33]} 9. a3 {[%clk 0:02:43]}  Nd5 {[%clk 0:02:31]} 10. Bd6 {[%clk 0:02:35]}  Be7 {[%clk 0:02:17]} 11. c4 {[%clk 0:02:28]}  Bxb5 {[%clk 0:02:12]} 12. cxb5 {[%clk 0:02:21]}  Nc3 {[%clk 0:02:12]} 13. bxa6 {[%clk 0:02:19]}  Nxd1 {[%clk 0:01:53]} 14. axb7 {[%clk 0:02:10]} 1-0


[Site "https://www.chess.com"]

[Event "Titled Tuesday Blitz March 14 Late 2023"]
[White "Omelja, Artem"]
[Black "Yuan, Qingyu"]
[WhiteFideId "14119846"]
[BlackFideId "8609772"]
[WhiteElo "2404"]
[BlackElo "2359"]
[Result "0-1"]
[Round "08"]
[TimeControl "180+2"]
[Date "2023.03.14"]
[WhiteClock "0:00:05"]
[BlackClock "0:00:05"]

1. e4 {[%clk 0:03:00]}  e5 {[%clk 0:03:00]} 2. Nf3 {[%clk 0:03:00]}  Nc6 {[%clk 0:03:00]} 3. d4 {[%clk 0:03:00]}  exd4 {[%clk 0:03:00]} 4. Nxd4 {[%clk 0:03:01]}  Nf6 {[%clk 0:03:00]} 5. Nc3 {[%clk 0:03:02]}  Bb4 {[%clk 0:03:00]} 6. Nxc6 {[%clk 0:03:02]}  bxc6 {[%clk 0:03:01]} 7. Bd3 {[%clk 0:03:02]}  O-O {[%clk 0:03:01]} 8. O-O {[%clk 0:03:02]}  d5 {[%clk 0:03:02]} 9. exd5 {[%clk 0:03:02]}  Bg4 {[%clk 0:03:02]} 10. f3 {[%clk 0:02:57]}  Bh5 {[%clk 0:03:01]} 11. Bg5 {[%clk 0:02:57]}  Qd6 {[%clk 0:03:01]} 12. Bxf6 {[%clk 0:02:54]}  Qxf6 {[%clk 0:02:56]} 13. dxc6 {[%clk 0:02:54]}  Bxc3 {[%clk 0:02:36]} 14. bxc3 {[%clk 0:02:53]}  Qxc3 {[%clk 0:02:36]} 15. Be4 {[%clk 0:02:51]}  Bg6 {[%clk 0:02:20]} 16. Bxg6 {[%clk 0:02:44]}  hxg6 {[%clk 0:02:18]} 17. Qd7 {[%clk 0:02:44]}  Rac8 {[%clk 0:01:47]} 18. Qd3 {[%clk 0:02:14]}  Qxc6 {[%clk 0:01:45]} 19. Rad1 {[%clk 0:02:14]}  Rfe8 {[%clk 0:01:36]} 20. Rfe1 {[%clk 0:02:13]}  Qc5+ {[%clk 0:01:28]} 21. Kf1 {[%clk 0:02:10]}  Rb8 {[%clk 0:01:11]} 22. Rxe8+ {[%clk 0:01:58]}  Rxe8 {[%clk 0:01:11]} 23. c3 {[%clk 0:01:26]}  g5 {[%clk 0:00:54]} 24. Qd4 {[%clk 0:01:25]}  Qb5+ {[%clk 0:00:40]} 25. Qd3 {[%clk 0:01:24]}  Qb6 {[%clk 0:00:28]} 26. g3 {[%clk 0:00:57]}  Re3 {[%clk 0:00:19]} 27. Qd8+ {[%clk 0:00:55]}  Kh7 {[%clk 0:00:19]} 28. Qd5 {[%clk 0:00:48]}  Qf6 {[%clk 0:00:15]} 29. Kf2 {[%clk 0:00:39]}  Rxc3 {[%clk 0:00:13]} 30. Qe4+ {[%clk 0:00:39]}  g6 {[%clk 0:00:13]} 31. Rd2 {[%clk 0:00:33]}  Kg7 {[%clk 0:00:11]} 32. Kg2 {[%clk 0:00:25]}  a5 {[%clk 0:00:08]} 33. Rf2 {[%clk 0:00:24]}  Ra3 {[%clk 0:00:04]} 34. Qc4 {[%clk 0:00:17]}  Rc3 {[%clk 0:00:03]} 35. Qb5 {[%clk 0:00:17]}  Qb6 {[%clk 0:00:03]} 36. Qe5+ {[%clk 0:00:16]}  Qf6 {[%clk 0:00:03]} 37. Qxa5 {[%clk 0:00:16]}  c5 {[%clk 0:00:01]} 38. Qb5 {[%clk 0:00:11]}  c4 {[%clk 0:00:02]} 39. a4 {[%clk 0:00:11]}  Qd4 {[%clk 0:00:02]} 40. Qxg5 {[%clk 0:00:11]}  Ra3 {[%clk 0:00:02]} 41. Qd2 {[%clk 0:00:10]}  Qc5 {[%clk 0:00:02]} 42. Qb2+ {[%clk 0:00:10]}  c3 {[%clk 0:00:02]} 43. Qb5 {[%clk 0:00:07]}  Qd4 {[%clk 0:00:03]} 44. a5 {[%clk 0:00:04]}  Ra1 {[%clk 0:00:03]} 45. a6 {[%clk 0:00:04]}  Rd1 {[%clk 0:00:03]} 46. Qb3 {[%clk 0:00:03]}  Rd2 {[%clk 0:00:03]} 47. Rxd2 {[%clk 0:00:04]}  Qxd2+ {[%clk 0:00:03]} 48. Kh3 {[%clk 0:00:04]}  c2 {[%clk 0:00:04]} 49. a7 {[%clk 0:00:04]}  c1=Q {[%clk 0:00:04]} 50. a8=Q {[%clk 0:00:04]}  Qf1+ {[%clk 0:00:04]} 51. Kg4 {[%clk 0:00:05]}  Qd4+ {[%clk 0:00:04]} 52. f4 {[%clk 0:00:05]}  f5+ {[%clk 0:00:04]} 53. Kg5 {[%clk 0:00:05]}  Qf6# {[%clk 0:00:05]} 0-1


[Site "https://www.chess.com"]

[Event "Titled Tuesday Blitz March 14 Late 2023"]
[White "Popov, Mikhail"]
[Black "Fus, Jakub"]
[WhiteFideId "4146182"]
[BlackFideId "1193023"]
[WhiteElo "2270"]
[BlackElo "2335"]
[Result "0-1"]
[Round "08"]
[TimeControl "180+2"]
[Date "2023.03.14"]
[WhiteClock "0:00:02"]
[BlackClock "0:00:50"]

1. c4 {[%clk 0:02:54]}  Nf6 {[%clk 0:02:59]} 2. g3 {[%clk 0:02:53]}  e6 {[%clk 0:02:56]} 3. Bg2 {[%clk 0:02:54]}  d5 {[%clk 0:02:57]} 4. Nf3 {[%clk 0:02:53]}  Be7 {[%clk 0:02:57]} 5. O-O {[%clk 0:02:52]}  O-O {[%clk 0:02:58]} 6. Qc2 {[%clk 0:02:51]}  dxc4 {[%clk 0:02:55]} 7. Qxc4 {[%clk 0:02:51]}  a6 {[%clk 0:02:53]} 8. a4 {[%clk 0:02:38]}  b5 {[%clk 0:02:41]} 9. Qc2 {[%clk 0:02:14]}  Bb7 {[%clk 0:02:40]} 10. axb5 {[%clk 0:02:14]}  axb5 {[%clk 0:02:40]} 11. Rxa8 {[%clk 0:02:15]}  Bxa8 {[%clk 0:02:40]} 12. d4 {[%clk 0:02:10]}  Nbd7 {[%clk 0:02:38]} 13. Nc3 {[%clk 0:02:09]}  b4 {[%clk 0:02:33]} 14. Na4 {[%clk 0:02:00]}  Be4 {[%clk 0:02:33]} 15. Qd1 {[%clk 0:01:58]}  Qa8 {[%clk 0:02:26]} 16. b3 {[%clk 0:01:57]}  Rd8 {[%clk 0:02:26]} 17. Bd2 {[%clk 0:01:29]}  c5 {[%clk 0:02:15]} 18. dxc5 {[%clk 0:01:27]}  Nxc5 {[%clk 0:02:15]} 19. Nxc5 {[%clk 0:01:26]}  Bxc5 {[%clk 0:02:16]} 20. Qc1 {[%clk 0:01:25]}  Qd5 {[%clk 0:01:59]} 21. Bg5 {[%clk 0:01:22]}  Be7 {[%clk 0:01:56]} 22. Qb2 {[%clk 0:01:03]}  h6 {[%clk 0:01:53]} 23. Bf4 {[%clk 0:00:56]}  Ng4 {[%clk 0:01:47]} 24. h3 {[%clk 0:00:53]}  Bf6 {[%clk 0:01:47]} 25. Qc1 {[%clk 0:00:48]}  Ne5 {[%clk 0:01:47]} 26. Bxe5 {[%clk 0:00:24]}  Bxe5 {[%clk 0:01:46]} 27. Qe3 {[%clk 0:00:12]}  Bc3 {[%clk 0:01:35]} 28. Rc1 {[%clk 0:00:10]}  Bxf3 {[%clk 0:01:24]} 29. Qxf3 {[%clk 0:00:09]}  Qxb3 {[%clk 0:01:24]} 30. Qe4 {[%clk 0:00:05]}  Rd1+ {[%clk 0:01:24]} 31. Rxd1 {[%clk 0:00:05]}  Qxd1+ {[%clk 0:01:25]} 32. Kh2 {[%clk 0:00:05]}  g6 {[%clk 0:01:24]} 33. Qc4 {[%clk 0:00:03]}  Qe1 {[%clk 0:01:19]} 34. Qc8+ {[%clk 0:00:02]}  Kg7 {[%clk 0:01:19]} 35. Qc5 {[%clk 0:00:02]}  Qxe2 {[%clk 0:01:18]} 36. Qb6 {[%clk 0:00:01]}  h5 {[%clk 0:01:16]} 37. h4 {[%clk 0:00:01]}  Be1 {[%clk 0:01:13]} 38. Kg1 {[%clk 0:00:02]}  b3 {[%clk 0:01:10]} 39. Qxb3 {[%clk 0:00:02]}  Qxf2+ {[%clk 0:01:09]} 40. Kh2 {[%clk 0:00:03]}  Qf6 {[%clk 0:01:05]} 41. Qd1 {[%clk 0:00:03]}  Bc3 {[%clk 0:01:05]} 42. Qd3 {[%clk 0:00:03]}  Be5 {[%clk 0:01:06]} 43. Kg1 {[%clk 0:00:03]}  Qe7 {[%clk 0:01:04]} 44. Qe3 {[%clk 0:00:02]}  Qc7 {[%clk 0:01:03]} 45. Kh2 {[%clk 0:00:02]}  Bf6 {[%clk 0:00:58]} 46. Kh3 {[%clk 0:00:03]}  Qc2 {[%clk 0:00:57]} 47. Qf3 {[%clk 0:00:01]}  Qd2 {[%clk 0:00:55]} 48. Qe4 {[%clk 0:00:01]}  g5 {[%clk 0:00:50]} 49. Qf3 {[%clk 0:00:02]}  g4+ {[%clk 0:00:50]} 0-1


[Site "https://www.chess.com"]

[Event "Titled Tuesday Blitz March 14 Late 2023"]
[White "Jaskolka, Tomasz"]
[Black "Fernandez, Maria Florencia"]
[WhiteFideId "1170791"]
[BlackFideId "116459"]
[WhiteElo "2155"]
[BlackElo "2155"]
[Result "1-0"]
[Round "08"]
[TimeControl "180+2"]
[Date "2023.03.14"]
[WhiteClock "0:01:13"]
[BlackClock "0:00:54"]

1. d4 {[%clk 0:03:00]}  d6 {[%clk 0:03:00]} 2. Nc3 {[%clk 0:02:59]}  Nf6 {[%clk 0:03:00]} 3. e4 {[%clk 0:03:00]}  g6 {[%clk 0:02:59]} 4. Bf4 {[%clk 0:02:59]}  Bg7 {[%clk 0:02:59]} 5. Qd2 {[%clk 0:03:00]}  c6 {[%clk 0:02:57]} 6. O-O-O {[%clk 0:03:00]}  b5 {[%clk 0:02:57]} 7. f3 {[%clk 0:03:00]}  b4 {[%clk 0:02:56]} 8. Nce2 {[%clk 0:03:00]}  a5 {[%clk 0:02:56]} 9. Kb1 {[%clk 0:03:00]}  Nbd7 {[%clk 0:02:54]} 10. Bh6 {[%clk 0:03:01]}  Bxh6 {[%clk 0:02:54]} 11. Qxh6 {[%clk 0:03:01]}  Qc7 {[%clk 0:02:54]} 12. Nh3 {[%clk 0:02:58]}  c5 {[%clk 0:02:49]} 13. Ng5 {[%clk 0:02:53]}  c4 {[%clk 0:02:43]} 14. Qg7 {[%clk 0:02:32]}  Rf8 {[%clk 0:02:41]} 15. Nf4 {[%clk 0:02:31]}  Nb6 {[%clk 0:02:19]} 16. e5 {[%clk 0:02:13]}  dxe5 {[%clk 0:02:00]} 17. dxe5 {[%clk 0:02:13]}  Qxe5 {[%clk 0:01:47]} 18. Nxh7 {[%clk 0:01:43]}  Nxh7 {[%clk 0:01:46]} 19. Qxe5 {[%clk 0:01:43]}  Nf6 {[%clk 0:01:40]} 20. Bxc4 {[%clk 0:01:33]}  Nfd7 {[%clk 0:01:30]} 21. Qb5 {[%clk 0:01:28]}  Ba6 {[%clk 0:01:20]} 22. Qxa6 {[%clk 0:01:28]}  Rxa6 {[%clk 0:01:20]} 23. Bxa6 {[%clk 0:01:29]}  e5 {[%clk 0:01:17]} 24. Nd5 {[%clk 0:01:27]}  f5 {[%clk 0:01:03]} 25. Bb5 {[%clk 0:01:27]}  Kf7 {[%clk 0:00:58]} 26. Bxd7 {[%clk 0:01:22]}  Nxd7 {[%clk 0:00:58]} 27. Nxb4 {[%clk 0:01:22]}  Nc5 {[%clk 0:00:57]} 28. Rd5 {[%clk 0:01:17]}  Ne6 {[%clk 0:00:57]} 29. Rxa5 {[%clk 0:01:15]}  Rb8 {[%clk 0:00:55]} 30. Nc6 {[%clk 0:01:14]}  Rb6 {[%clk 0:00:54]} 31. Nxe5+ {[%clk 0:01:13]}  Kf6 {[%clk 0:00:54]} 32. Nd7+ {[%clk 0:01:13]} 1-0


[Site "https://www.chess.com"]

[Event "Titled Tuesday Blitz March 14 Late 2023"]
[White "marik_spb"]
[Black "Janaszak, Dawid"]
[BlackFideId "1119206"]
[WhiteElo "2416"]
[BlackElo "2220"]
[Result "0-1"]
[Round "08"]
[TimeControl "180+2"]
[Date "2023.03.14"]
[WhiteClock "0:00:02"]
[BlackClock "0:00:17"]

1. d4 {[%clk 0:02:01]}  Nf6 {[%clk 0:02:51]} 2. c4 {[%clk 0:02:02]}  g6 {[%clk 0:02:49]} 3. Nf3 {[%clk 0:02:03]}  Bg7 {[%clk 0:02:48]} 4. g3 {[%clk 0:02:04]}  O-O {[%clk 0:02:47]} 5. Bg2 {[%clk 0:02:05]}  c5 {[%clk 0:02:48]} 6. O-O {[%clk 0:02:05]}  d6 {[%clk 0:02:47]} 7. Nc3 {[%clk 0:02:05]}  Nc6 {[%clk 0:02:47]} 8. dxc5 {[%clk 0:02:05]}  dxc5 {[%clk 0:02:47]} 9. Be3 {[%clk 0:02:05]}  Qa5 {[%clk 0:02:36]} 10. Qa4 {[%clk 0:02:04]}  Ng4 {[%clk 0:02:33]} 11. Qxa5 {[%clk 0:02:01]}  Nxa5 {[%clk 0:02:34]} 12. Bxc5 {[%clk 0:02:02]}  Nxc4 {[%clk 0:02:33]} 13. h3 {[%clk 0:01:54]}  Nxb2 {[%clk 0:02:26]} 14. Rac1 {[%clk 0:01:54]}  Nf6 {[%clk 0:02:20]} 15. Bxe7 {[%clk 0:01:50]}  Re8 {[%clk 0:02:20]} 16. Bc5 {[%clk 0:01:46]}  Be6 {[%clk 0:02:07]} 17. Nb5 {[%clk 0:01:42]}  Bh6 {[%clk 0:01:47]} 18. Rc2 {[%clk 0:01:35]}  Na4 {[%clk 0:01:41]} 19. Nc7 {[%clk 0:01:29]}  Nxc5 {[%clk 0:01:24]} 20. Nxe8 {[%clk 0:01:22]}  Rxe8 {[%clk 0:01:22]} 21. Rxc5 {[%clk 0:01:21]}  Bxa2 {[%clk 0:01:23]} 22. Ra5 {[%clk 0:01:21]}  Bc4 {[%clk 0:01:20]} 23. Rxa7 {[%clk 0:01:20]}  Bxe2 {[%clk 0:01:17]} 24. Rb1 {[%clk 0:01:19]}  Ba6 {[%clk 0:01:09]} 25. Nd4 {[%clk 0:01:08]}  Ne4 {[%clk 0:01:08]} 26. Nb5 {[%clk 0:00:54]}  Nxf2 {[%clk 0:00:55]} 27. Nc7 {[%clk 0:00:48]}  Re2 {[%clk 0:00:38]} 28. Nxa6 {[%clk 0:00:44]}  bxa6 {[%clk 0:00:33]} 29. Rxa6 {[%clk 0:00:25]}  Be3 {[%clk 0:00:30]} 30. Kf1 {[%clk 0:00:26]}  Rd2 {[%clk 0:00:28]} 31. Ra3 {[%clk 0:00:20]}  Nd3 {[%clk 0:00:27]} 32. Rxd3 {[%clk 0:00:09]}  Rxd3 {[%clk 0:00:28]} 33. Ke2 {[%clk 0:00:09]}  Rc3 {[%clk 0:00:27]} 34. Bd5 {[%clk 0:00:08]}  Kf8 {[%clk 0:00:21]} 35. Rb7 {[%clk 0:00:07]}  f5 {[%clk 0:00:19]} 36. Rxh7 {[%clk 0:00:07]}  Bg5 {[%clk 0:00:18]} 37. Rf7+ {[%clk 0:00:05]}  Ke8 {[%clk 0:00:18]} 38. Rg7 {[%clk 0:00:02]}  Rxg3 {[%clk 0:00:17]} 39. Rxg6 {[%clk 0:00:02]}  f4 {[%clk 0:00:17]} 0-1


[Site "https://www.chess.com"]